[Event "Titled Tuesday Blitz February 07 Early 2023"]
[White "Manukyan, Sargis A."]
[Black "Ilinca Ilinca, Felix Antonio"]
[WhiteFideId "13303970"]
[BlackFideId "54764998"]
[WhiteElo "2158"]
[BlackElo "2266"]
[Result "0-1"]
[Round "11"]
[TimeControl "180+2"]
[Date "2023.02.07"]
[WhiteClock "0:00:16"]
[BlackClock "0:00:15"]

1. d4 {[%clk 0:03:00]}  d5 {[%clk 0:02:59]} 2. c4 {[%clk 0:02:58]}  e6 {[%clk 0:02:59]} 3. Nc3 {[%clk 0:02:58]}  Nf6 {[%clk 0:03:00]} 4. Nf3 {[%clk 0:02:57]}  Bb4 {[%clk 0:02:58]} 5. Bg5 {[%clk 0:02:55]}  h6 {[%clk 0:02:57]} 6. Bh4 {[%clk 0:02:55]}  dxc4 {[%clk 0:02:55]} 7. e3 {[%clk 0:02:49]}  b5 {[%clk 0:02:53]} 8. a4 {[%clk 0:02:43]}  c6 {[%clk 0:02:46]} 9. Nd2 {[%clk 0:02:42]}  Bb7 {[%clk 0:02:12]} 10. axb5 {[%clk 0:02:36]}  cxb5 {[%clk 0:02:13]} 11. Nxb5 {[%clk 0:02:36]}  O-O {[%clk 0:02:10]} 12. Nc3 {[%clk 0:02:33]}  Nbd7 {[%clk 0:02:02]} 13. Bxc4 {[%clk 0:02:31]}  Bxg2 {[%clk 0:01:56]} 14. Rg1 {[%clk 0:02:31]}  Bb7 {[%clk 0:01:57]} 15. Qb3 {[%clk 0:02:29]}  a5 {[%clk 0:01:50]} 16. Ke2 {[%clk 0:02:23]}  Rc8 {[%clk 0:01:42]} 17. Bd3 {[%clk 0:02:19]}  e5 {[%clk 0:01:33]} 18. Bxf6 {[%clk 0:01:21]}  Nxf6 {[%clk 0:01:17]} 19. dxe5 {[%clk 0:01:19]}  Nd7 {[%clk 0:01:13]} 20. e6 {[%clk 0:01:07]}  Nc5 {[%clk 0:01:09]} 21. exf7+ {[%clk 0:01:08]}  Rxf7 {[%clk 0:01:05]} 22. Bh7+ {[%clk 0:00:59]}  Kf8 {[%clk 0:00:59]} 23. Qc2 {[%clk 0:00:52]}  Ba6+ {[%clk 0:00:55]} 24. Ke1 {[%clk 0:00:51]}  Qh4 {[%clk 0:00:47]} 25. Nf1 {[%clk 0:00:32]}  Nb3 {[%clk 0:00:34]} 26. Rd1 {[%clk 0:00:28]}  Rxc3 {[%clk 0:00:30]} 27. Rd8+ {[%clk 0:00:10]}  Ke7 {[%clk 0:00:28]} 28. Rd7+ {[%clk 0:00:06]}  Kxd7 {[%clk 0:00:27]} 29. Bf5+ {[%clk 0:00:04]}  Ke7 {[%clk 0:00:26]} 30. bxc3 {[%clk 0:00:04]}  Rxf5 {[%clk 0:00:25]} 31. Qxf5 {[%clk 0:00:04]}  Bxc3+ {[%clk 0:00:25]} 32. Kd1 {[%clk 0:00:05]}  Qc4 {[%clk 0:00:23]} 33. Rxg7+ {[%clk 0:00:05]}  Bxg7 {[%clk 0:00:23]} 34. Nd2 {[%clk 0:00:04]}  Qe2+ {[%clk 0:00:23]} 35. Kc2 {[%clk 0:00:04]}  Qxd2+ {[%clk 0:00:23]} 36. Kxb3 {[%clk 0:00:05]}  Qb4+ {[%clk 0:00:22]} 37. Kc2 {[%clk 0:00:05]}  Qc4+ {[%clk 0:00:22]} 38. Kd1 {[%clk 0:00:05]}  Qe2+ {[%clk 0:00:21]} 39. Kc1 {[%clk 0:00:06]}  Bb2+ {[%clk 0:00:21]} 40. Kb1 {[%clk 0:00:06]}  Bd3+ {[%clk 0:00:22]} 41. Ka2 {[%clk 0:00:07]}  Bxf5 {[%clk 0:00:22]} 42. e4 {[%clk 0:00:08]}  Be6+ {[%clk 0:00:22]} 43. Kb1 {[%clk 0:00:08]}  Kd6 {[%clk 0:00:22]} 44. e5+ {[%clk 0:00:07]}  Kc5 {[%clk 0:00:22]} 45. h3 {[%clk 0:00:08]}  Kc4 {[%clk 0:00:22]} 46. h4 {[%clk 0:00:09]}  Kb3 {[%clk 0:00:22]} 47. h5 {[%clk 0:00:10]}  Bd7 {[%clk 0:00:20]} 48. f4 {[%clk 0:00:11]}  Be8 {[%clk 0:00:20]} 49. f5 {[%clk 0:00:12]}  a4 {[%clk 0:00:21]} 50. e6 {[%clk 0:00:13]}  a3 {[%clk 0:00:22]} 51. f6 {[%clk 0:00:14]}  Bg6+ {[%clk 0:00:20]} 52. hxg6 {[%clk 0:00:13]}  Qxe6 {[%clk 0:00:20]} 53. g7 {[%clk 0:00:14]}  Qf7 {[%clk 0:00:16]} 54. g8=Q {[%clk 0:00:15]}  Qxg8 {[%clk 0:00:16]} 55. f7 {[%clk 0:00:16]}  Qh8 {[%clk 0:00:15]} 56. f8=Q {[%clk 0:00:16]}  a2# {[%clk 0:00:15]} 0-1


[Site "https://www.chess.com"]

[Event "Titled Tuesday Blitz February 07 Early 2023"]
[White "Panesso Rivera, Henry"]
[Black "Sowul, Bartosz"]
[WhiteFideId "4402707"]
[BlackFideId "1137590"]
[WhiteElo "2342"]
[BlackElo "2269"]
[Result "1-0"]
[Round "11"]
[TimeControl "180+2"]
[Date "2023.02.07"]
[WhiteClock "0:00:52"]
[BlackClock "0:00:04"]

1. Nf3 {[%clk 0:03:00]}  Nf6 {[%clk 0:02:58]} 2. g3 {[%clk 0:02:56]}  d5 {[%clk 0:02:56]} 3. Bg2 {[%clk 0:02:55]}  Bg4 {[%clk 0:02:51]} 4. h3 {[%clk 0:02:50]}  Bh5 {[%clk 0:02:48]} 5. O-O {[%clk 0:02:46]}  c6 {[%clk 0:02:48]} 6. d4 {[%clk 0:02:46]}  Nbd7 {[%clk 0:02:46]} 7. Bd2 {[%clk 0:02:46]}  e6 {[%clk 0:02:42]} 8. Re1 {[%clk 0:02:46]}  Ne4 {[%clk 0:02:40]} 9. a3 {[%clk 0:02:44]}  f5 {[%clk 0:02:38]} 10. Bb4 {[%clk 0:02:44]}  Bxb4 {[%clk 0:02:31]} 11. axb4 {[%clk 0:02:45]}  a5 {[%clk 0:02:29]} 12. bxa5 {[%clk 0:02:38]}  Rxa5 {[%clk 0:02:29]} 13. Nbd2 {[%clk 0:02:34]}  O-O {[%clk 0:02:16]} 14. Nb3 {[%clk 0:02:34]}  Rxa1 {[%clk 0:02:11]} 15. Qxa1 {[%clk 0:02:35]}  Qa8 {[%clk 0:02:09]} 16. Qxa8 {[%clk 0:02:25]}  Rxa8 {[%clk 0:02:10]} 17. Ra1 {[%clk 0:02:26]}  Rxa1+ {[%clk 0:02:01]} 18. Nxa1 {[%clk 0:02:27]}  Kf7 {[%clk 0:01:54]} 19. Kf1 {[%clk 0:02:27]}  Ke7 {[%clk 0:01:53]} 20. Ke1 {[%clk 0:02:27]}  g5 {[%clk 0:01:45]} 21. Nb3 {[%clk 0:02:25]}  g4 {[%clk 0:01:40]} 22. hxg4 {[%clk 0:02:24]}  Bxg4 {[%clk 0:01:39]} 23. Na5 {[%clk 0:02:24]}  Nd6 {[%clk 0:01:27]} 24. Ne5 {[%clk 0:02:24]}  Nf6 {[%clk 0:01:11]} 25. f3 {[%clk 0:02:21]}  Bh5 {[%clk 0:01:10]} 26. Kd2 {[%clk 0:02:20]}  Be8 {[%clk 0:01:08]} 27. b4 {[%clk 0:02:18]}  Nh5 {[%clk 0:01:02]} 28. g4 {[%clk 0:02:16]}  Nf4 {[%clk 0:00:59]} 29. Bf1 {[%clk 0:02:16]}  fxg4 {[%clk 0:00:51]} 30. fxg4 {[%clk 0:02:15]}  Ng6 {[%clk 0:00:43]} 31. Nxg6+ {[%clk 0:02:07]}  Bxg6 {[%clk 0:00:42]} 32. e3 {[%clk 0:01:37]}  Kf6 {[%clk 0:00:33]} 33. c4 {[%clk 0:01:31]}  dxc4 {[%clk 0:00:31]} 34. Bxc4 {[%clk 0:01:32]}  b6 {[%clk 0:00:16]} 35. Be2 {[%clk 0:01:13]}  bxa5 {[%clk 0:00:15]} 36. bxa5 {[%clk 0:01:14]}  Nc8 {[%clk 0:00:14]} 37. Bf3 {[%clk 0:01:13]}  Be8 {[%clk 0:00:13]} 38. Kc3 {[%clk 0:01:11]}  h6 {[%clk 0:00:13]} 39. Kb4 {[%clk 0:01:11]}  Ke7 {[%clk 0:00:13]} 40. Kc5 {[%clk 0:01:12]}  Kd8 {[%clk 0:00:12]} 41. Bxc6 {[%clk 0:01:10]}  Bg6 {[%clk 0:00:08]} 42. Bb7 {[%clk 0:01:06]}  Kc7 {[%clk 0:00:07]} 43. Bxc8 {[%clk 0:01:06]}  Kxc8 {[%clk 0:00:08]} 44. Kd6 {[%clk 0:01:07]}  Bf7 {[%clk 0:00:04]} 45. Ke7 {[%clk 0:01:06]}  h5 {[%clk 0:00:01]} 46. gxh5 {[%clk 0:01:06]}  Bxh5 {[%clk 0:00:02]} 47. Kxe6 {[%clk 0:01:04]}  Bf3 {[%clk 0:00:02]} 48. d5 {[%clk 0:01:01]}  Kc7 {[%clk 0:00:03]} 49. d6+ {[%clk 0:00:58]}  Kb7 {[%clk 0:00:03]} 50. e4 {[%clk 0:00:54]}  Bxe4 {[%clk 0:00:03]} 51. d7 {[%clk 0:00:54]}  Bf5+ {[%clk 0:00:02]} 52. Kxf5 {[%clk 0:00:54]}  Kc7 {[%clk 0:00:02]} 53. Ke6 {[%clk 0:00:53]}  Kd8 {[%clk 0:00:03]} 54. a6 {[%clk 0:00:54]}  Kc7 {[%clk 0:00:03]} 55. Ke7 {[%clk 0:00:54]}  Kb6 {[%clk 0:00:03]} 56. d8=Q+ {[%clk 0:00:53]}  Kxa6 {[%clk 0:00:04]} 57. Qb8 {[%clk 0:00:52]} 1-0


[Site "https://www.chess.com"]

[Event "Titled Tuesday Blitz February 07 Early 2023"]
[White "Averjanov, Alexey"]
[Black "Cella, Glaucio Dalla Cortt"]
[WhiteFideId "14109867"]
[BlackFideId "2119455"]
[WhiteElo "2399"]
[BlackElo "1894"]
[Result "0-1"]
[Round "11"]
[TimeControl "180+2"]
[Date "2023.02.07"]
[WhiteClock "0:00:10"]
[BlackClock "0:00:28"]

1. d4 {[%clk 0:03:00]}  Nf6 {[%clk 0:02:59]} 2. c4 {[%clk 0:03:00]}  e5 {[%clk 0:02:59]} 3. dxe5 {[%clk 0:03:00]}  Ng4 {[%clk 0:02:59]} 4. Nf3 {[%clk 0:03:00]}  Bc5 {[%clk 0:02:59]} 5. e3 {[%clk 0:03:00]}  Nc6 {[%clk 0:02:58]} 6. b3 {[%clk 0:03:00]}  O-O {[%clk 0:02:58]} 7. Bb2 {[%clk 0:02:59]}  Re8 {[%clk 0:02:58]} 8. Be2 {[%clk 0:02:57]}  Ncxe5 {[%clk 0:02:57]} 9. Nxe5 {[%clk 0:02:57]}  Nxe5 {[%clk 0:02:57]} 10. Nc3 {[%clk 0:02:56]}  a5 {[%clk 0:02:56]} 11. O-O {[%clk 0:02:56]}  Ra6 {[%clk 0:02:54]} 12. Nd5 {[%clk 0:02:56]}  Rh6 {[%clk 0:02:50]} 13. Nf4 {[%clk 0:02:56]}  d6 {[%clk 0:02:19]} 14. h3 {[%clk 0:02:48]}  Qg5 {[%clk 0:02:19]} 15. Kh2 {[%clk 0:02:43]}  Ng4+ {[%clk 0:02:12]} 16. Bxg4 {[%clk 0:02:35]}  Bxg4 {[%clk 0:02:13]} 17. Qd5 {[%clk 0:02:34]}  Qxd5 {[%clk 0:02:09]} 18. Nxd5 {[%clk 0:02:32]}  c6 {[%clk 0:02:09]} 19. Nf4 {[%clk 0:02:25]}  g5 {[%clk 0:02:00]} 20. Nd3 {[%clk 0:01:58]}  Bb6 {[%clk 0:02:00]} 21. Rfe1 {[%clk 0:01:53]}  Bc7 {[%clk 0:02:00]} 22. Kg1 {[%clk 0:01:51]}  Bf5 {[%clk 0:02:00]} 23. Rad1 {[%clk 0:01:48]}  a4 {[%clk 0:01:46]} 24. Bc3 {[%clk 0:01:41]}  Rhe6 {[%clk 0:01:38]} 25. Kf1 {[%clk 0:01:36]}  R6e7 {[%clk 0:01:37]} 26. Bb4 {[%clk 0:01:33]}  Kg7 {[%clk 0:01:33]} 27. Rd2 {[%clk 0:01:28]}  f6 {[%clk 0:01:30]} 28. Nc1 {[%clk 0:01:24]}  axb3 {[%clk 0:01:22]} 29. axb3 {[%clk 0:01:24]}  c5 {[%clk 0:01:23]} 30. Bc3 {[%clk 0:01:23]}  Ra8 {[%clk 0:01:20]} 31. Red1 {[%clk 0:01:16]}  Kg6 {[%clk 0:01:17]} 32. f3 {[%clk 0:01:14]}  Rxe3 {[%clk 0:01:12]} 33. Bb2 {[%clk 0:01:10]}  Rae8 {[%clk 0:01:12]} 34. Kf2 {[%clk 0:01:09]}  Kf7 {[%clk 0:01:08]} 35. Rxd6 {[%clk 0:00:54]}  Bxd6 {[%clk 0:01:07]} 36. Rxd6 {[%clk 0:00:55]}  Bg6 {[%clk 0:01:05]} 37. Rxf6+ {[%clk 0:00:54]}  Kg8 {[%clk 0:01:02]} 38. Rb6 {[%clk 0:00:53]}  Re1 {[%clk 0:00:47]} 39. Rxb7 {[%clk 0:00:48]}  Rd1 {[%clk 0:00:47]} 40. Ba3 {[%clk 0:00:41]}  Rd2+ {[%clk 0:00:37]} 41. Kg3 {[%clk 0:00:40]}  Rc2 {[%clk 0:00:38]} 42. b4 {[%clk 0:00:28]}  Ra8 {[%clk 0:00:37]} 43. Nb3 {[%clk 0:00:17]}  Rxa3 {[%clk 0:00:31]} 44. Nxc5 {[%clk 0:00:18]}  Raa2 {[%clk 0:00:31]} 45. Kg4 {[%clk 0:00:10]}  Rxg2# {[%clk 0:00:28]} 0-1


[Site "https://www.chess.com"]

[Event "Titled Tuesday Blitz February 07 Early 2023"]
[White "Tymrakiewicz, Rafal"]
[Black "Iskusnyh, Sergei"]
[WhiteFideId "1108832"]
[BlackFideId "4120027"]
[WhiteElo "2144"]
[BlackElo "2440"]
[Result "0-1"]
[Round "11"]
[TimeControl "180+2"]
[Date "2023.02.07"]
[WhiteClock "0:00:02"]
[BlackClock "0:00:11"]

1. d4 {[%clk 0:03:00]}  d5 {[%clk 0:02:58]} 2. Bg5 {[%clk 0:03:01]}  h6 {[%clk 0:02:56]} 3. Bh4 {[%clk 0:03:01]}  c5 {[%clk 0:02:56]} 4. e3 {[%clk 0:03:01]}  Nc6 {[%clk 0:02:51]} 5. c3 {[%clk 0:03:01]}  g5 {[%clk 0:02:46]} 6. Bg3 {[%clk 0:03:00]}  Bg7 {[%clk 0:02:46]} 7. Nf3 {[%clk 0:02:56]}  Nf6 {[%clk 0:02:41]} 8. Nbd2 {[%clk 0:02:53]}  Nh5 {[%clk 0:02:38]} 9. Be5 {[%clk 0:02:53]}  f6 {[%clk 0:02:14]} 10. Ng1 {[%clk 0:02:52]}  fxe5 {[%clk 0:02:11]} 11. Qxh5+ {[%clk 0:02:52]}  Kf8 {[%clk 0:02:09]} 12. dxc5 {[%clk 0:02:43]}  b6 {[%clk 0:02:02]} 13. h4 {[%clk 0:02:40]}  g4 {[%clk 0:02:00]} 14. Ne2 {[%clk 0:02:29]}  bxc5 {[%clk 0:01:55]} 15. Ng3 {[%clk 0:02:29]}  Qd6 {[%clk 0:01:47]} 16. e4 {[%clk 0:02:18]}  e6 {[%clk 0:01:05]} 17. Qxg4 {[%clk 0:02:09]}  Rb8 {[%clk 0:01:01]} 18. Rb1 {[%clk 0:02:05]}  Qe7 {[%clk 0:00:44]} 19. Be2 {[%clk 0:02:00]}  Rg8 {[%clk 0:00:43]} 20. Qf3+ {[%clk 0:01:50]}  Qf7 {[%clk 0:00:39]} 21. Qxf7+ {[%clk 0:01:43]}  Kxf7 {[%clk 0:00:39]} 22. Bf3 {[%clk 0:01:44]}  Ne7 {[%clk 0:00:38]} 23. O-O {[%clk 0:01:37]}  Bf6 {[%clk 0:00:36]} 24. h5 {[%clk 0:01:31]}  Ba6 {[%clk 0:00:36]} 25. Be2 {[%clk 0:01:28]}  Bb7 {[%clk 0:00:31]} 26. c4 {[%clk 0:01:15]}  Bg5 {[%clk 0:00:24]} 27. Rfd1 {[%clk 0:01:14]}  d4 {[%clk 0:00:19]} 28. Bd3 {[%clk 0:00:52]}  Bf4 {[%clk 0:00:18]} 29. Ne2 {[%clk 0:00:51]}  Bxd2 {[%clk 0:00:16]} 30. Rxd2 {[%clk 0:00:51]}  Nc8 {[%clk 0:00:17]} 31. Rf1 {[%clk 0:00:48]}  Nd6 {[%clk 0:00:17]} 32. f3 {[%clk 0:00:46]}  Ke7 {[%clk 0:00:16]} 33. Rb1 {[%clk 0:00:40]}  Bc6 {[%clk 0:00:16]} 34. b3 {[%clk 0:00:40]}  Rbf8 {[%clk 0:00:16]} 35. Kf2 {[%clk 0:00:36]}  Rg5 {[%clk 0:00:15]} 36. Rh1 {[%clk 0:00:33]}  Ne8 {[%clk 0:00:16]} 37. Rb2 {[%clk 0:00:26]}  Nf6 {[%clk 0:00:16]} 38. b4 {[%clk 0:00:23]}  Bxe4 {[%clk 0:00:15]} 39. fxe4 {[%clk 0:00:13]}  Ng4+ {[%clk 0:00:15]} 40. Ke1 {[%clk 0:00:11]}  Ne3 {[%clk 0:00:15]} 41. g3 {[%clk 0:00:10]}  cxb4 {[%clk 0:00:12]} 42. Rxb4 {[%clk 0:00:09]}  Kd6 {[%clk 0:00:13]} 43. Kd2 {[%clk 0:00:06]}  Nf1+ {[%clk 0:00:13]} 44. Ke1 {[%clk 0:00:05]}  Ne3 {[%clk 0:00:12]} 45. Rb7 {[%clk 0:00:05]}  Rf3 {[%clk 0:00:11]} 46. Rg1 {[%clk 0:00:02]}  Ng4 {[%clk 0:00:11]} 47. Kd2 {[%clk 0:00:02]}  Nf2 {[%clk 0:00:11]} 0-1


[Site "https://www.chess.com"]

[Event "Titled Tuesday Blitz February 07 Early 2023"]
[White "Pinheiro, Iung Alicio de O."]
[Black "Mazurkiewicz, Michal"]
[WhiteFideId "2104350"]
[BlackFideId "1124943"]
[WhiteElo "2306"]
[BlackElo "2145"]
[Result "1-0"]
[Round "11"]
[TimeControl "180+2"]
[Date "2023.02.07"]
[WhiteClock "0:00:11"]
[BlackClock "0:00:08"]

1. e4 {[%clk 0:03:00]}  d6 {[%clk 0:03:00]} 2. d4 {[%clk 0:02:59]}  Nf6 {[%clk 0:03:00]} 3. Nc3 {[%clk 0:02:58]}  c6 {[%clk 0:03:01]} 4. a4 {[%clk 0:02:49]}  e5 {[%clk 0:02:58]} 5. Nf3 {[%clk 0:02:38]}  Qc7 {[%clk 0:02:57]} 6. h3 {[%clk 0:02:37]}  Be7 {[%clk 0:02:57]} 7. Bc4 {[%clk 0:02:37]}  O-O {[%clk 0:02:57]} 8. O-O {[%clk 0:02:37]}  exd4 {[%clk 0:02:45]} 9. Nxd4 {[%clk 0:02:31]}  Nxe4 {[%clk 0:02:44]} 10. Nxe4 {[%clk 0:02:27]}  d5 {[%clk 0:02:44]} 11. Bd3 {[%clk 0:02:09]}  dxe4 {[%clk 0:02:42]} 12. Bxe4 {[%clk 0:02:10]}  Qe5 {[%clk 0:02:42]} 13. Bd3 {[%clk 0:02:05]}  Bc5 {[%clk 0:02:01]} 14. Nf3 {[%clk 0:01:56]}  Qh5 {[%clk 0:02:01]} 15. Bf4 {[%clk 0:01:52]}  Be6 {[%clk 0:01:59]} 16. Ne5 {[%clk 0:01:34]}  Qxd1 {[%clk 0:01:48]} 17. Raxd1 {[%clk 0:01:35]}  Na6 {[%clk 0:01:36]} 18. Nxc6 {[%clk 0:01:15]}  Rac8 {[%clk 0:01:05]} 19. Na5 {[%clk 0:01:07]}  Nb4 {[%clk 0:00:55]} 20. Nxb7 {[%clk 0:01:01]}  Nxd3 {[%clk 0:00:55]} 21. Rxd3 {[%clk 0:00:47]}  Bc4 {[%clk 0:00:55]} 22. Nxc5 {[%clk 0:00:47]}  Bxd3 {[%clk 0:00:19]} 23. Nxd3 {[%clk 0:00:48]}  Rxc2 {[%clk 0:00:19]} 24. Be5 {[%clk 0:00:45]}  Rd8 {[%clk 0:00:19]} 25. Rd1 {[%clk 0:00:25]}  Rc4 {[%clk 0:00:17]} 26. b3 {[%clk 0:00:18]}  Re4 {[%clk 0:00:15]} 27. Ba1 {[%clk 0:00:15]}  Re6 {[%clk 0:00:09]} 28. Kf1 {[%clk 0:00:15]}  f6 {[%clk 0:00:09]} 29. Bb2 {[%clk 0:00:13]}  Rb6 {[%clk 0:00:09]} 30. b4 {[%clk 0:00:08]}  Rxb4 {[%clk 0:00:09]} 31. Nxb4 {[%clk 0:00:09]}  Rxd1+ {[%clk 0:00:09]} 32. Ke2 {[%clk 0:00:10]}  Rb1 {[%clk 0:00:09]} 33. Bc3 {[%clk 0:00:10]}  Rb3 {[%clk 0:00:09]} 34. Kd3 {[%clk 0:00:10]}  Ra3 {[%clk 0:00:09]} 35. Kc2 {[%clk 0:00:05]}  Rxa4 {[%clk 0:00:09]} 36. Kb3 {[%clk 0:00:06]}  Ra5 {[%clk 0:00:09]} 37. Kc4 {[%clk 0:00:06]}  Rf5 {[%clk 0:00:08]} 38. Bd4 {[%clk 0:00:05]}  a5 {[%clk 0:00:06]} 39. Nc6 {[%clk 0:00:06]}  a4 {[%clk 0:00:06]} 40. Ne7+ {[%clk 0:00:06]}  Kf7 {[%clk 0:00:06]} 41. Nxf5 {[%clk 0:00:07]}  Ke6 {[%clk 0:00:05]} 42. Ne3 {[%clk 0:00:07]}  a3 {[%clk 0:00:05]} 43. Ba1 {[%clk 0:00:07]}  g5 {[%clk 0:00:05]} 44. Kb3 {[%clk 0:00:08]}  f5 {[%clk 0:00:05]} 45. g4 {[%clk 0:00:08]}  f4 {[%clk 0:00:05]} 46. Nf5 {[%clk 0:00:07]}  h5 {[%clk 0:00:05]} 47. Kxa3 {[%clk 0:00:07]}  hxg4 {[%clk 0:00:04]} 48. hxg4 {[%clk 0:00:08]}  Kd5 {[%clk 0:00:05]} 49. f3 {[%clk 0:00:09]}  Kc4 {[%clk 0:00:05]} 50. Bf6 {[%clk 0:00:09]}  Kd3 {[%clk 0:00:06]} 51. Bxg5 {[%clk 0:00:09]}  Ke2 {[%clk 0:00:06]} 52. Bxf4 {[%clk 0:00:09]}  Kxf3 {[%clk 0:00:07]} 53. g5 {[%clk 0:00:09]}  Ke4 {[%clk 0:00:08]} 54. g6 {[%clk 0:00:10]}  Kxf5 {[%clk 0:00:08]} 55. g7 {[%clk 0:00:11]} 1-0


[Site "https://www.chess.com"]

[Event "Titled Tuesday Blitz February 07 Early 2023"]
[White "Manukian, Artak"]
[Black "Song, Julien"]
[WhiteFideId "13301373"]
[BlackFideId "659487"]
[WhiteElo "2196"]
[BlackElo "2350"]
[Result "0-1"]
[Round "11"]
[TimeControl "180+2"]
[Date "2023.02.07"]
[WhiteClock "0:01:14"]
[BlackClock "0:02:20"]

1. e4 {[%clk 0:02:58]}  e6 {[%clk 0:03:00]} 2. d4 {[%clk 0:02:57]}  d5 {[%clk 0:03:01]} 3. e5 {[%clk 0:02:58]}  c5 {[%clk 0:03:01]} 4. c3 {[%clk 0:02:59]}  Nc6 {[%clk 0:03:01]} 5. Nf3 {[%clk 0:02:59]}  Qb6 {[%clk 0:03:00]} 6. a3 {[%clk 0:02:59]}  Nh6 {[%clk 0:02:50]} 7. b4 {[%clk 0:02:58]}  cxd4 {[%clk 0:02:50]} 8. cxd4 {[%clk 0:02:58]}  Nf5 {[%clk 0:02:51]} 9. Bb2 {[%clk 0:02:56]}  Na5 {[%clk 0:02:47]} 10. Nbd2 {[%clk 0:02:50]}  Bd7 {[%clk 0:02:45]} 11. Bd3 {[%clk 0:02:48]}  Rc8 {[%clk 0:02:41]} 12. O-O {[%clk 0:02:47]}  Nc4 {[%clk 0:02:40]} 13. Bxc4 {[%clk 0:02:33]}  dxc4 {[%clk 0:02:41]} 14. Bc3 {[%clk 0:02:33]}  Qc6 {[%clk 0:02:31]} 15. Re1 {[%clk 0:02:31]}  Qd5 {[%clk 0:02:29]} 16. Ne4 {[%clk 0:02:26]}  Be7 {[%clk 0:02:26]} 17. a4 {[%clk 0:02:14]}  a6 {[%clk 0:02:24]} 18. Ng3 {[%clk 0:01:57]}  Nxg3 {[%clk 0:02:22]} 19. hxg3 {[%clk 0:01:56]}  Bc6 {[%clk 0:02:22]} 20. Qd2 {[%clk 0:01:38]}  b6 {[%clk 0:02:21]} 21. a5 {[%clk 0:01:37]}  b5 {[%clk 0:02:22]} 22. Qf4 {[%clk 0:01:33]}  g5 {[%clk 0:02:20]} 23. Qg4 {[%clk 0:01:24]}  h5 {[%clk 0:02:20]} 24. Qh3 {[%clk 0:01:14]}  g4 {[%clk 0:02:20]} 0-1


[Site "https://www.chess.com"]

[Event "Titled Tuesday Blitz February 07 Early 2023"]
[White "Lorenzo De La Riva, Lazaro"]
[Black "Djokovic, Nebojsa"]
[WhiteFideId "2268809"]
[BlackFideId "938300"]
[WhiteElo "2404"]
[BlackElo "2119"]
[Result "1-0"]
[Round "11"]
[TimeControl "180+2"]
[Date "2023.02.07"]
[WhiteClock "0:00:23"]
[BlackClock "0:00:01"]

1. c4 {[%clk 0:03:00]}  e6 {[%clk 0:02:51]} 2. Nc3 {[%clk 0:03:01]}  Nf6 {[%clk 0:02:50]} 3. e3 {[%clk 0:03:02]}  d5 {[%clk 0:02:49]} 4. Nf3 {[%clk 0:03:02]}  Be7 {[%clk 0:02:49]} 5. a3 {[%clk 0:03:02]}  O-O {[%clk 0:02:49]} 6. d4 {[%clk 0:03:02]}  c6 {[%clk 0:02:49]} 7. b3 {[%clk 0:02:55]}  Nbd7 {[%clk 0:02:48]} 8. Bb2 {[%clk 0:02:54]}  b6 {[%clk 0:02:48]} 9. Bd3 {[%clk 0:02:53]}  dxc4 {[%clk 0:02:48]} 10. Bxc4 {[%clk 0:02:48]}  Bb7 {[%clk 0:02:48]} 11. O-O {[%clk 0:02:48]}  Qc7 {[%clk 0:02:48]} 12. Rc1 {[%clk 0:02:47]}  Rad8 {[%clk 0:02:47]} 13. Qe2 {[%clk 0:02:47]}  Qb8 {[%clk 0:02:47]} 14. Rfd1 {[%clk 0:02:46]}  Rfe8 {[%clk 0:02:47]} 15. e4 {[%clk 0:02:46]}  Nf8 {[%clk 0:02:47]} 16. e5 {[%clk 0:02:43]}  Nd5 {[%clk 0:02:47]} 17. Nxd5 {[%clk 0:02:43]}  exd5 {[%clk 0:02:40]} 18. Bd3 {[%clk 0:02:42]}  Ne6 {[%clk 0:02:37]} 19. g3 {[%clk 0:02:41]}  c5 {[%clk 0:02:37]} 20. h4 {[%clk 0:02:31]}  Rc8 {[%clk 0:02:26]} 21. Bf5 {[%clk 0:02:24]}  Rc7 {[%clk 0:01:53]} 22. h5 {[%clk 0:02:24]}  Bc8 {[%clk 0:01:41]} 23. Bb1 {[%clk 0:02:18]}  g6 {[%clk 0:01:25]} 24. hxg6 {[%clk 0:02:15]}  hxg6 {[%clk 0:01:25]} 25. Nh2 {[%clk 0:02:13]}  Nxd4 {[%clk 0:01:22]} 26. Bxd4 {[%clk 0:02:09]}  cxd4 {[%clk 0:01:23]} 27. Ng4 {[%clk 0:02:02]}  Bxg4 {[%clk 0:01:16]} 28. Qxg4 {[%clk 0:02:03]}  Rxc1 {[%clk 0:01:16]} 29. Rxc1 {[%clk 0:02:03]}  Qxe5 {[%clk 0:01:17]} 30. Kg2 {[%clk 0:01:51]}  Bxa3 {[%clk 0:01:00]} 31. Rc6 {[%clk 0:01:47]}  Bf8 {[%clk 0:00:29]} 32. Bd3 {[%clk 0:01:33]}  Bg7 {[%clk 0:00:28]} 33. Qf3 {[%clk 0:01:24]}  Re6 {[%clk 0:00:22]} 34. Rc8+ {[%clk 0:01:23]}  Re8 {[%clk 0:00:22]} 35. Rc2 {[%clk 0:01:23]}  Qd6 {[%clk 0:00:14]} 36. Bb5 {[%clk 0:01:17]}  Rd8 {[%clk 0:00:12]} 37. Rc6 {[%clk 0:01:13]}  Qb4 {[%clk 0:00:12]} 38. Bd3 {[%clk 0:01:04]}  Qxb3 {[%clk 0:00:12]} 39. Rc7 {[%clk 0:01:05]}  Rf8 {[%clk 0:00:12]} 40. Rxa7 {[%clk 0:01:04]}  b5 {[%clk 0:00:11]} 41. Rd7 {[%clk 0:01:04]}  b4 {[%clk 0:00:11]} 42. Rxd5 {[%clk 0:01:05]}  Qc3 {[%clk 0:00:11]} 43. Qe4 {[%clk 0:00:55]}  b3 {[%clk 0:00:10]} 44. Rb5 {[%clk 0:00:56]}  b2 {[%clk 0:00:08]} 45. Rb7 {[%clk 0:00:54]}  Rc8 {[%clk 0:00:05]} 46. Qd5 {[%clk 0:00:52]}  Rf8 {[%clk 0:00:05]} 47. Bc4 {[%clk 0:00:50]}  Kh8 {[%clk 0:00:02]} 48. Rxf7 {[%clk 0:00:46]}  b1=Q {[%clk 0:00:02]} 49. Rxf8+ {[%clk 0:00:45]}  Kh7 {[%clk 0:00:02]} 50. Qg8+ {[%clk 0:00:22]}  Kh6 {[%clk 0:00:03]} 51. Rf4 {[%clk 0:00:23]}  Qb7+ {[%clk 0:00:01]} 52. Bd5 {[%clk 0:00:23]}  Qxd5+ {[%clk 0:00:01]} 53. Qxd5 {[%clk 0:00:24]}  Qd3 {[%clk 0:00:01]} 54. Rh4# {[%clk 0:00:23]} 1-0


[Site "https://www.chess.com"]